bitfinex/quotes_ETHUSD_20241030
["timestamp","ask_amount","ask_price","bid_price","bid_amount"]
[1730250556458,3.83112,2610.2,2609.7,7.26258244]
[1730250556870,0.0785956,2610.1,2609.7,7.26258244]
[1730250557539,0.0785956,2610.1,2609.7,3.43082244]
[1730250557780,3.9099556,2610.1,2609.7,3.43082244]
[1730250557954,0.0785956,2610.1,2609.7,3.43082244]
[1730250558150,3.83167,2609.9,2609.3,7.26312244]
[1730250558359,3.83167,2609.9,2609.0,0.7943]
[1730250558360,3.832,2609.6,2609.1,7.26347244]
[1730250558585,0.7829,2609.5,2609.0,3.8328]
[1730250558745,0.7829,2609.5,2609.1,3.83272]
[1730250558946,4.61447,2609.9,2609.4,3.43082244]
[1730250559189,4.61447,2609.9,2609.4,7.26300244]
[1730250559190,1.71273776,2609.9,2609.4,7.26300244]
[1730250559346,0.7829,2609.9,2609.4,11.09518244]
[1730250559547,0.7829,2609.9,2609.5,3.83207]
[1730250559852,3.83119,2610.2,2609.8,3.43082244]
[1730250559853,7.66241,2610.2,2609.8,3.43082244]
[1730250560081,3.8312,2610.2,2609.8,3.43082244]
[1730250560989,3.83128,2610.1,2609.8,3.43082244]
[1730250561164,0.7829,2609.9,2609.4,3.43082244]
[1730250561362,3.83217,2609.5,2609.0,3.43082244]
[1730250561748,0.7829,2609.4,2609.0,3.43082244]
[1730250562492,0.7829,2609.4,2608.7,3.83323]
[1730250562696,0.7829,2609.4,2608.6,0.7943]
[1730250562697,3.8329,2609.0,2608.6,3.43082244]
[1730250563054,0.7829,2608.9,2608.6,3.43082244]
[1730250563454,0.7829,2608.9,2608.8,3.43082244]
[1730250564296,0.7829,2608.9,2608.8,3.42982986]
[1730250564794,4.68206755,2609.2,2608.8,3.42982986]
[1730250564962,0.46820676,2609.1,2608.8,3.42982986]
[1730250565773,0.84938755,2609.2,2608.8,7.26299986]
[1730250566158,0.7829,2609.2,2609.1,3.43082244]
[1730250566496,3.83209,2609.6,2609.1,3.2974484]
[1730250566497,0.7829,2609.5,2609.1,3.2974484]
[1730250567666,0.7829,2609.5,2609.3,3.43082244]
[1730250567871,0.7829,2609.5,2609.3,7.26318244]
[1730250568475,0.7829,2609.8,2609.3,7.26318244]
[1730250568678,1.244335,2609.8,2609.3,7.26318244]
[1730250570388,5.076055,2609.8,2609.3,3.43082244]
[1730250572500,1.244335,2609.8,2609.3,3.43082244]
[1730250572786,0.06648164,2609.9,2609.7,3.43082244]
[1730250573380,0.06648164,2609.9,2609.7,7.26265244]
[1730250573584,0.07807548,2609.8,2609.7,7.26259244]
[1730250573891,0.06648164,2609.9,2609.7,7.26259244]
[1730250574296,0.07807548,2609.8,2609.7,7.26259244]
[1730250574485,0.07807548,2609.8,2609.7,8.45503068]
[1730250575011,0.8157,2610.1,2609.7,8.45503068]
[1730250575216,0.07807548,2609.8,2609.7,7.26259244]
[1730250575578,0.8157,2610.1,2609.3,3.83231]
[1730250575707,0.8157,2610.1,2608.7,5.299]
[1730250575708,0.8157,2609.6,2609.0,3.43082244]
[1730250576088,4.64808,2609.4,2608.7,3.8332]
[1730250576287,0.47262757,2609.3,2608.7,3.8332]
[1730250576528,4.30509757,2609.3,2608.7,3.8332]
[1730250576828,0.07816049,2609.2,2608.7,3.8332]
[1730250577001,0.07816049,2609.2,2608.8,7.26390244]
[1730250577198,0.47262757,2609.3,2608.8,7.26390244]
[1730250577385,0.07816049,2609.1,2608.8,7.26390244]
[1730250577591,0.47262757,2609.3,2608.8,7.26390244]
[1730250577823,0.47262757,2609.3,2608.8,3.43082244]
[1730250577824,0.07816049,2609.0,2608.8,3.43082244]
[1730250577997,0.47262757,2609.3,2608.8,7.26390244]
[1730250578322,0.07816049,2608.9,2608.8,3.43082244]
[1730250578486,0.47262757,2609.3,2608.7,3.8332]
[1730250578683,0.07816049,2608.9,2608.6,8.23407541]
[1730250578925,4.30509757,2609.3,2608.6,8.23407541]
[1730250579104,0.07816049,2608.8,2608.7,3.83332]
[1730250579429,0.51207976,2609.2,2608.8,3.83313]
[1730250579615,0.47262757,2609.3,2608.8,3.83313]
[1730250580303,0.47262757,2609.3,2608.7,3.83332]
[1730250582244,0.47262757,2609.3,2608.3,4.66366]
[1730250582245,3.83299,2609.0,2608.3,4.66363]
[1730250582423,3.83299,2609.0,2607.9,0.46664248]
[1730250582424,4.6488,2608.9,2608.2,3.83393]
[1730250582611,5.032099,2608.9,2608.2,3.83393]
[1730250583325,1.198999,2608.9,2608.4,4.40060541]
[1730250583532,1.198999,2608.9,2608.5,3.83353]
[1730250583854,0.8157,2609.2,2608.7,8.23379541]
[1730250584643,0.8157,2609.2,2608.7,4.40060541]
[1730250585037,0.8157,2609.2,2608.3,3.83383]
[1730250585038,0.8157,2608.7,2608.1,8.23473541]
[1730250585250,0.8157,2608.7,2608.2,3.83397]
[1730250585450,0.8157,2608.7,2608.4,4.40060541]
[1730250585840,3.83269,2609.2,2608.4,4.40060541]
[1730250586156,0.7732,2609.0,2608.5,3.83362]
[1730250586314,0.7732,2609.0,2608.4,8.23435541]
[1730250586516,0.7832,2608.9,2607.8,4.40060541]
[1730250586723,3.83334,2608.7,2608.1,8.23478541]
[1730250587056,0.07774367,2608.6,2608.1,8.23478541]
[1730250587437,0.7732,2608.5,2608.1,4.40060541]
[1730250587647,0.07772085,2608.4,2608.2,3.83404]
[1730250587813,0.07772085,2608.4,2608.1,4.40060541]
[1730250588653,0.07772085,2608.4,2608.1,8.23467541]
[1730250588958,0.07772085,2608.4,2606.6,1.19415857]
[1730250588959,3.83612,2606.8,2606.6,1.19415857]
[1730250589184,0.7732,2606.3,2605.6,4.40060541]
[1730250589317,3.83709,2606.2,2605.4,3.83807]
[1730250589523,0.7832,2606.3,2605.4,3.83807]
[1730250589524,4.62014,2606.3,2605.6,3.83779]
[1730250589715,0.07672385,2606.1,2605.5,4.40060541]
[1730250589919,0.845689,2606.2,2605.8,4.40060541]
[1730250590166,0.07671554,2606.1,2605.9,3.83741]
[1730250590466,0.07671554,2606.1,2605.9,3.83731]
[1730250590467,0.07576621,2606.1,2605.9,3.83731]
[1730250590744,0.7732,2606.3,2605.9,3.83734]
[1730250591016,0.7732,2606.3,2605.6,0.36679288]
[1730250591309,0.7732,2606.7,2606.2,3.83688]
[1730250591805,0.07294401,2606.6,2605.9,4.5932]
[1730250591971,0.07294401,2606.6,2606.1,4.40060541]
[1730250592168,0.07294401,2606.6,2606.0,8.25778541]
[1730250592375,0.92481441,2606.6,2606.0,8.25778541]
[1730250592587,0.07294401,2606.6,2606.2,3.83698]
[1730250592992,0.7732,2606.7,2606.2,3.83698]
[1730250593196,0.07293564,2606.5,2606.2,3.83691]
[1730250593401,0.7732,2606.7,2606.3,4.40060541]
[1730250593675,0.7732,2607.1,2606.9,3.83596]
[1730250594092,0.7732,2607.1,2606.9,3.76970173]
[1730250594301,0.7732,2607.1,2606.7,3.83615]
[1730250594987,0.7732,2607.1,2606.5,3.83647]
[1730250595303,1.234061,2607.1,2606.5,3.83647]
[1730250595480,1.234061,2607.1,2606.3,3.83682]
[1730250595481,3.83583,2607.0,2606.3,3.83682]
[1730250595791,1.244061,2607.1,2606.3,3.83675]
[1730250595985,5.079741,2607.1,2606.3,3.83675]
[1730250596215,1.234061,2607.1,2606.1,0.07673847]
[1730250596427,1.234061,2607.1,2606.4,3.83658]
[1730250596717,1.234061,2607.1,2606.5,3.83656]
[1730250597217,1.234061,2607.1,2606.4,3.83662]
[1730250597407,5.079821,2607.1,2606.3,3.83673]
[1730250597599,0.8915401,2607.0,2606.3,3.83673]
[1730250597991,0.8915401,2607.0,2606.0,0.02]
[1730250597992,0.7732,2606.8,2606.0,0.02]
[1730250598213,3.83628,2606.7,2606.0,0.02]
[1730250599002,4.60944,2606.8,2606.0,0.02]
[1730250599315,0.461944,2606.7,2606.1,3.83713]
[1730250599888,0.7732,2606.8,2606.5,3.83653]
[1730250600094,0.7732,2606.8,2606.5,3.83646]
[1730250600320,0.8216,2607.3,2606.7,3.83624]
[1730250600491,0.8216,2607.3,2607.1,3.83553]
[1730250600931,0.8216,2607.3,2606.2,0.831]
[1730250600932,0.8216,2606.0,2605.1,0.91899671]
[1730250601228,0.8216,2605.4,2605.1,0.1256372]
[1730250601428,0.8216,2605.4,2604.8,0.1183503]
[1730250601429,0.01,2605.1,2604.8,0.1183503]
[1730250601598,3.84872,2605.1,2604.8,0.1183503]
[1730250602341,0.8216,2605.0,2604.8,0.1183503]
[1730250602638,4.66039,2605.0,2604.8,0.1183503]
[1730250602844,0.850911,2604.9,2604.8,0.1183503]
[1730250603253,0.850911,2604.9,2602.4,0.1356372]
[1730250603254,0.01,2604.3,2602.4,0.1356372]
[1730250603407,0.01,2604.2,2603.5,3.84094]
[1730250603612,0.06946819,2604.2,2603.7,3.84066]
[1730250603805,4.68211,2603.9,2603.1,3.84154]
[1730250604006,0.468211,2603.8,2603.1,3.84154]
[1730250604241,2.0716,2603.7,2602.0,0.01249448]
[1730250604445,5.97884397,2603.7,2602.6,3.84227]
[1730250604605,5.97884397,2603.7,2602.5,3.84236]
[1730250604806,5.97884397,2603.7,2602.4,3.9681972]
[1730250605044,5.97884397,2603.7,2602.7,3.84206]
[1730250605208,5.97884397,2603.7,2603.6,2.92494299]
[1730250605611,6.5799175,2603.7,2603.6,2.92494299]
[1730250605912,6.36174077,2603.7,2603.6,2.92494299]
[1730250606452,0.954207,2603.7,2603.6,2.92494299]
[1730250606652,0.132607,2603.7,2603.6,6.76577299]
[1730250606810,0.60099402,2604.1,2603.6,2.92494299]
[1730250607307,4.66156,2604.2,2603.6,2.92494299]
[1730250607846,0.05953039,2604.1,2603.6,2.92494299]
[1730250608030,3.89963039,2604.1,2603.6,2.92494299]
[1730250608233,4.75580943,2604.1,2603.6,2.92494299]
[1730250608714,0.91564943,2604.1,2603.6,2.92494299]
[1730250608911,0.91564943,2604.1,2603.6,6.76576299]
[1730250609114,0.05953039,2604.1,2603.6,2.92494299]
[1730250609542,0.05953039,2604.1,2603.8,3.84051]
[1730250609740,0.05953039,2604.1,2603.9,4.91911556]
[1730250610106,0.60091795,2604.4,2603.9,8.75937556]
[1730250610322,0.05780482,2604.0,2603.9,8.75937556]
[1730250610847,0.60091795,2604.4,2603.9,8.75937556]
[1730250611049,0.05780482,2604.0,2603.9,8.75937556]
[1730250611220,0.60091795,2604.4,2603.9,8.75937556]
[1730250611542,0.05717546,2604.0,2603.9,8.75937556]
[1730250611744,0.60091795,2604.4,2603.9,8.75937556]
[1730250611947,0.88762791,2604.6,2604.1,3.84009]
[1730250612148,1.78428365,2604.6,2603.9,8.75937556]
[1730250612451,3.83969,2604.4,2603.9,4.91911556]
[1730250612639,3.83951,2604.5,2603.9,8.75948556]
[1730250613044,3.83966,2604.4,2603.9,4.91911556]
[1730250613254,3.83996,2604.2,2603.9,4.91911556]
[1730250613625,3.83966,2604.4,2603.9,4.91911556]
[1730250613818,3.83995,2604.2,2603.9,4.91911556]
[1730250614238,0.05719032,2604.1,2603.9,4.91911556]
[1730250614448,0.383966,2604.3,2603.9,4.91911556]
[1730250614770,0.05719032,2604.0,2603.9,4.91911556]
[1730250614968,3.83995,2604.2,2603.9,4.91911556]
[1730250615122,3.89754032,2604.0,2603.6,2.92494299]
[1730250615317,3.84035,2604.0,2603.6,2.92494299]
[1730250615637,3.84056,2603.8,2603.6,2.92494299]
[1730250615837,3.84056,2603.8,2603.6,2.87494299]
[1730250616055,0.05717119,2603.7,2603.6,2.87494299]
[1730250616244,0.77381003,2603.8,2603.6,2.87494299]
[1730250616422,0.05717119,2603.7,2603.6,2.87494299]
[1730250616755,3.84035,2604.0,2603.6,2.87494299]
[1730250616982,3.90785119,2603.7,2603.6,2.87494299]
[1730250617267,4.30445534,2603.7,2603.6,2.87494299]
[1730250617980,3.90785119,2603.7,2603.6,2.87494299]
[1730250618275,4.76160031,2603.7,2603.6,2.87494299]
[1730250618941,4.75160031,2603.7,2603.6,2.87494299]
[1730250619152,4.75160031,2603.7,2603.6,2.86341955]
[1730250620030,4.76160031,2603.7,2603.6,2.86341955]
[1730250620775,4.75160031,2603.7,2603.6,2.86341955]
[1730250622777,0.05717119,2603.7,2603.6,2.86341955]
[1730250623074,3.84031,2604.0,2603.6,2.86341955]
[1730250623388,0.05564251,2603.7,2603.6,2.86341955]
[1730250623547,3.84031,2604.0,2603.6,2.82036294]
[1730250623746,0.05564251,2603.7,2603.6,2.82036294]
[1730250624058,3.84031,2604.0,2603.6,2.82036294]
[1730250624261,3.84002,2604.2,2603.6,2.82036294]
[1730250624487,3.84002,2604.2,2603.7,3.84066]
[1730250624634,4.44014283,2604.7,2603.9,3.84026]
[1730250624978,3.83962,2604.5,2603.9,3.84026]
[1730250625150,7.67926,2604.5,2603.9,3.84026]
[1730250625349,3.83962,2604.5,2603.8,4.91911556]
[1730250625556,3.83981,2604.3,2603.7,3.84056]
[1730250626174,3.84007,2604.2,2603.6,7.45518294]
[1730250626382,3.84038,2604.0,2603.6,2.82036294]
[1730250626577,3.84041,2603.9,2603.6,2.66003175]
[1730250626778,7.68077,2604.0,2603.6,2.66003175]
[1730250626980,3.84055,2603.8,2603.6,2.66003175]
[1730250627155,3.84038,2604.0,2603.6,2.66003175]
[1730250627356,3.84047,2603.9,2603.6,2.66003175]
[1730250627590,8.064798,2604.0,2603.6,2.66003175]
[1730250627878,4.224418,2604.0,2603.6,2.66003175]
[1730250628075,0.384038,2604.0,2603.6,2.66003175]
[1730250628280,3.84019,2604.1,2603.6,2.66003175]
[1730250628640,0.7891,2604.1,2603.6,2.66003175]
[1730250628976,3.84068,2603.7,2603.6,2.66003175]
[1730250629338,4.64155,2602.5,2601.6,0.78685358]
[1730250629541,4.64155,2602.5,2601.2,4.41861674]
[1730250629542,3.84245,2602.5,2601.2,4.41861674]
[1730250629744,3.84304,2602.1,2602.0,1e-08]
[1730250629970,3.84353,2601.8,2601.2,3.84435]
[1730250630136,3.84353,2601.8,2601.1,0.804]
[1730250630137,3.84364,2601.7,2601.4,4.41861674]
[1730250630339,3.84356,2601.8,2601.1,3.8445]
[1730250630550,0.01,2602.4,2600.7,0.01]
[1730250630551,0.01,2602.0,2600.7,0.01]
[1730250630888,3.84416,2601.4,2600.7,3.85509]
[1730250631183,3.8438,2601.6,2600.9,3.84472]
[1730250631367,3.8438,2601.6,2601.0,3.84464]
[1730250631879,3.84376,2601.7,2601.0,7.68916]
[1730250632066,3.84385,2601.6,2601.0,3.84457]
[1730250632386,0.02,2600.8,2600.0,3.5]
[1730250632682,3.84545,2600.5,2600.0,3.5]
[1730250632985,9.53805714,2601.5,2600.0,3.5]
[1730250632986,3.84489,2600.9,2600.0,3.5]
[1730250633140,0.384489,2600.8,2600.0,3.5]
[1730250633343,3.84512,2600.7,2600.0,3.5]
[1730250633643,0.09082184,2600.6,2600.0,3.5]
[1730250633881,3.84545,2600.5,2600.0,3.5]
[1730250634083,0.09059508,2600.5,2600.0,7.34602]
[1730250634384,0.01,2601.4,2600.2,0.794]
[1730250634385,3.84456,2601.1,2600.2,0.794]
[1730250634688,0.08931508,2600.4,2600.3,4.309599]
[1730250634984,3.84438,2601.2,2600.5,3.84539]
[1730250635187,3.84412,2601.4,2600.6,3.84515]
[1730250635343,0.08745224,2601.1,2600.3,0.463989]
[1730250635544,3.84427,2601.3,2600.6,3.84516]
[1730250635769,0.08745224,2601.0,2600.6,3.84516]
[1730250635968,3.84415,2601.4,2600.6,3.84516]
[1730250636187,9.63441205,2610.9,2600.8,3.84497]
[1730250636188,0.08745224,2600.9,2600.8,3.84497]
[1730250636341,0.01,2601.9,2600.8,3.84497]
[1730250636684,0.01,2601.9,2600.3,4.93521614]
[1730250636685,3.93094224,2601.8,2601.1,3.8445]
[1730250637097,3.84364,2601.7,2600.9,7.68949]
[1730250637387,3.84418,2601.4,2600.8,3.84496]
[1730250637849,0.08757851,2601.3,2600.8,3.84496]
[1730250638250,0.08757851,2601.3,2600.9,3.84481]
[1730250638476,3.84398,2601.5,2600.8,3.84496]
[1730250638673,3.84408,2601.4,2600.8,3.84496]
[1730250638881,3.93144893,2601.4,2600.6,3.84524]
[1730250639197,3.93144893,2601.4,2600.4,3.84549]
[1730250639198,3.84464,2601.1,2600.4,3.84549]
[1730250639508,3.8449,2600.9,2600.2,4.63975]
[1730250639717,0.08740957,2600.8,2600.5,3.84538]
[1730250639898,0.384464,2601.0,2600.4,3.84543]
[1730250640069,0.08740957,2600.9,2600.4,3.84543]
[1730250640783,4.44278293,2600.9,2600.3,3.8456]
[1730250640982,0.59796293,2600.9,2600.4,3.84554]
[1730250641398,0.59796293,2600.9,2600.2,0.794]
[1730250641608,0.59796293,2600.9,2600.5,3.8454]
[1730250642112,0.59796293,2600.9,2600.4,3.84543]
[1730250642430,0.44427229,2600.8,2600.3,3.8456]
[1730250642578,4.44280293,2600.9,2600.3,3.8456]
[1730250642907,0.51055336,2600.9,2600.4,3.84554]
[1730250643141,3.846,2600.1,2600.0,3.5]
[1730250643273,3.84551,2600.5,2600.0,3.5]
[1730250643473,0.5507743,2600.4,2600.0,3.5]
[1730250643673,0.5507743,2600.4,2600.0,4.294]
[1730250643674,0.0873133,2600.4,2600.0,4.294]
[1730250643869,0.7891,2600.9,2600.3,3.84571]
[1730250644118,0.08731757,2600.8,2600.3,3.84562]
[1730250644496,0.08731757,2600.8,2600.1,3.84597]
[1730250644497,0.08731757,2600.8,2600.2,3.84584]
[1730250644823,0.9835419,2600.8,2600.2,3.84584]
[1730250644974,0.08731757,2600.8,2600.2,3.84584]
[1730250645176,0.08731757,2600.8,2600.0,8.14008]
[1730250645406,3.84506,2600.8,2600.0,3.5]
[1730250645588,3.8456,2600.4,2600.0,3.5]
[1730250645775,3.84532,2600.6,2600.0,3.5]
[1730250645972,4.23872076,2600.5,2600.0,3.5]
[1730250646171,4.32600836,2600.5,2600.0,3.5]
[1730250647225,0.48054836,2600.5,2600.0,3.5]
[1730250647393,0.48054836,2600.5,2600.0,7.34605]
[1730250648109,0.0872876,2600.5,2600.0,7.34605]
[1730250648307,3.84499,2600.8,2600.0,7.34605]
[1730250648520,0.08719984,2600.7,2600.2,3.84583]
[1730250648820,4.65191,2600.9,2600.2,3.84583]
[1730250649016,0.08719984,2600.6,2600.3,3.84567]
[1730250649187,3.84499,2600.8,2600.2,3.84583]
[1730250649388,0.08719984,2600.5,2600.2,3.84577]
[1730250649612,0.465199,2600.7,2600.0,7.34605]
[1730250649613,4.310419,2600.7,2600.0,7.34605]
[1730250649787,0.08721484,2600.4,2600.1,3.8459]
[1730250649985,4.310419,2600.7,2600.1,3.8459]
[1730250650308,0.08721484,2600.6,2600.0,7.34605]
[1730250650482,0.52697822,2600.6,2600.0,3.5]
[1730250650686,3.8456,2600.4,2600.0,3.5]
[1730250651079,0.39617571,2601.0,2600.9,3.84482]
[1730250651284,0.39617571,2601.0,2600.9,0.7713]
[1730250651596,4.65041,2601.9,2600.9,1.6759329]
[1730250651913,3.84277,2602.3,2600.9,0.7713]
[1730250652119,3.84335,2601.9,2601.1,3.84441]
[1730250652283,3.84365,2601.7,2601.2,3.84434]
[1730250652478,3.84335,2601.9,2601.2,3.84434]
[1730250652479,3.84335,2601.9,2601.2,3.84428]
[1730250652708,3.84349,2601.8,2601.3,3.8442]
[1730250652981,0.768684,2601.8,2601.3,3.84413]
[1730250653304,3.84335,2601.9,2601.3,3.84413]
[1730250653711,3.8436,2601.8,2601.2,3.84434]
[1730250653882,3.84365,2601.7,2601.2,3.84434]
[1730250654084,3.84335,2601.9,2600.5,4.61661]
[1730250654085,3.84449,2601.2,2600.5,4.61661]
[1730250654707,3.84448,2601.2,2600.5,4.6166]
[1730250654909,3.84462,2601.1,2600.5,8.46191]
[1730250655184,3.84409,2601.4,2600.5,0.7713]
[1730250655380,3.84397,2601.5,2600.8,3.84487]
[1730250655609,4.693436,2601.5,2601.0,3.84466]
[1730250655807,0.849466,2601.5,2601.0,3.84466]
[1730250656006,4.65069,2601.7,2601.1,3.84442]
[1730250656423,8.49443,2601.7,2601.1,3.84442]
[1730250656586,4.65069,2601.7,2601.2,3.84435]
[1730250657081,3.84369,2601.7,2601.2,3.84435]
[1730250657286,3.84369,2601.7,2601.0,3.84459]
[1730250657526,4.6508335,2601.7,2601.2,3.84437]
[1730250658120,4.6508335,2601.7,2601.0,3.84459]
[1730250658299,3.84364,2601.7,2601.1,3.84449]
[1730250658502,3.84365,2601.7,2600.9,3.84472]
[1730250658710,3.84365,2601.7,2601.1,3.84452]
[1730250659288,3.8438,2601.6,2601.1,3.84452]
[1730250659538,3.84365,2601.7,2601.1,3.84444]
[1730250659855,3.84394,2601.5,2601.0,3.84463]
[1730250660383,4.612356,2601.7,2600.7,3.84511]
[1730250660590,4.612356,2601.7,2601.1,3.84444]
[1730250661293,4.612356,2601.7,2601.1,3.84442]
[1730250661294,0.768706,2601.7,2601.1,3.84442]
[1730250661597,4.65026,2602.0,2600.6,3.85518]
[1730250661598,0.807,2602.0,2601.3,3.84412]
[1730250661817,0.39625477,2602.3,2601.2,0.7884]
[1730250662040,0.7629,2602.4,2601.8,3.84341]
[1730250662241,8.44707,2602.8,2602.1,3.84297]
[1730250662440,0.384206,2602.7,2601.8,3.84343]
[1730250662637,8.44709,2602.8,2601.9,3.84327]
[1730250662853,8.44709,2602.8,2602.0,3.84311]
[1730250662854,3.84217,2602.7,2602.0,3.84311]
[1730250663018,4.60495,2602.8,2601.9,0.7884]
[1730250663019,0.7629,2602.8,2601.9,0.7884]
[1730250663366,0.7629,2602.8,2602.2,3.8428]
[1730250663518,0.08399981,2602.7,2602.0,3.84319]
[1730250663724,0.08399981,2602.7,2602.4,3.84253]
[1730250663915,0.7629,2603.4,2602.0,0.473159]
[1730250664268,0.7629,2603.4,2602.9,3.84184]
[1730250664269,0.08138177,2603.3,2602.9,3.84184]
[1730250664816,0.08138177,2603.3,2602.8,7.68384]
[1730250665059,0.03138177,2603.3,2602.8,7.68384]
[1730250665226,0.07873023,2603.3,2603.0,3.84163]
[1730250665556,3.84086,2603.6,2603.0,3.84163]
[1730250665793,0.596594,2603.5,2603.0,3.84163]
[1730250665956,0.7629,2603.4,2602.2,0.7884]
[1730250666254,3.84268,2602.4,2601.2,0.7984]
[1730250666455,0.768526,2602.3,2601.6,3.84368]
[1730250666673,3.84359,2601.8,2601.2,4.63268]
[1730250666817,0.7729,2602.7,2601.2,4.63268]
[1730250666818,0.7629,2602.0,2601.2,4.63268]
[1730250667013,3.8436,2601.8,2601.3,3.8442]
[1730250667214,0.07714087,2601.9,2601.7,3.84355]
[1730250667418,8.44834,2602.4,2601.7,3.84355]
[1730250667663,0.07714087,2601.8,2601.7,3.84355]
[1730250667830,0.844834,2602.3,2601.2,4.63275]
[1730250668031,4.6056,2602.4,2601.5,3.84384]
[1730250668341,3.84299,2602.2,2601.5,7.68768]
[1730250669021,3.84299,2602.2,2601.5,3.84384]
[1730250669583,3.84299,2602.2,2601.7,3.84363]
[1730250669786,0.7629,2602.4,2601.7,3.84349]
[1730250669944,3.84241,2602.6,2601.7,3.84349]
[1730250669945,3.84241,2602.6,2602.0,3.84318]
[1730250670147,3.84248,2602.5,2601.9,7.68651]
[1730250670353,3.8424,2602.6,2601.9,3.84325]
[1730250670547,3.84247,2602.5,2601.9,3.84325]
[1730250670748,3.84247,2602.5,2601.9,7.6865]
[1730250670959,3.84261,2602.4,2601.9,3.84325]
[1730250671284,0.844777,2602.5,2601.9,3.84325]
[1730250671491,3.84263,2602.4,2601.9,3.84325]
[1730250671788,3.84263,2602.4,2601.7,3.84356]
[1730250672161,3.84263,2602.4,2601.9,3.84331]
[1730250672691,0.0769884,2602.3,2601.7,3.84353]
[1730250672849,4.31171024,2602.3,2601.8,3.84348]
[1730250673186,4.31171024,2602.3,2601.7,3.84353]
[1730250673187,0.46895024,2602.3,2601.7,3.84353]
[1730250673551,0.46895024,2602.3,2601.9,3.84333]
[1730250673751,0.46895024,2602.3,2601.7,3.84353]
[1730250673752,0.46895024,2602.3,2601.8,3.84346]
[1730250673993,0.46895024,2602.3,2601.9,3.84326]
[1730250674166,0.46895024,2602.3,2602.0,3.84318]
[1730250674366,0.0769884,2602.3,2602.0,3.84315]
[1730250674683,7.68483,2602.6,2602.0,3.84315]
[1730250674884,7.68483,2602.6,2601.9,3.84323]
[1730250674885,0.0769884,2602.2,2601.9,3.84323]
[1730250675196,0.0769884,2602.1,2601.7,3.84354]
[1730250675551,3.84291,2602.2,2601.7,3.84354]
[1730250675846,0.0770335,2602.1,2601.8,3.84348]
[1730250676051,0.0770335,2602.1,2601.7,3.84354]
[1730250676284,1.36422832,2602.7,2601.6,3.84376]
[1730250676550,3.84307,2602.1,2601.6,3.84376]
[1730250676762,0.07703136,2602.0,2601.7,3.84363]
[1730250676961,7.68535,2602.4,2601.8,3.84334]
[1730250677173,0.07703136,2602.3,2601.8,3.84334]
[1730250677602,3.91991136,2602.3,2601.8,3.84334]
[1730250677808,3.91991136,2602.3,2601.5,3.84383]
[1730250677809,4.6961655,2602.3,2601.5,3.84383]
[1730250677960,3.84297,2602.2,2601.7,3.84362]
[1730250678164,0.07701416,2602.1,2601.5,3.84383]
[1730250678405,3.84324,2602.0,2601.5,3.84383]
[1730250678605,3.92021763,2602.0,2601.5,3.84383]
[1730250678901,3.92021763,2602.0,2601.6,3.84378]
[1730250678902,0.07697763,2602.0,2601.6,3.84378]
[1730250679277,0.07697763,2602.0,2601.5,7.68767]
[1730250679616,0.07697763,2602.0,2601.8,3.84342]
[1730250679767,0.07697763,2602.0,2601.8,3.84339]
[1730250679968,3.84254,2602.5,2601.9,3.84334]
[1730250679969,3.84261,2602.4,2601.9,3.84334]
[1730250680170,0.07697333,2602.3,2601.8,3.84339]
[1730250680569,0.07697333,2602.3,2601.6,3.84368]
[1730250680570,3.84283,2602.3,2601.6,3.84368]
[1730250680881,0.07697333,2602.2,2601.6,3.84367]
[1730250681204,0.07697333,2602.2,2601.8,3.84348]
[1730250681712,0.384283,2602.3,2601.8,3.84348]
[1730250681713,8.069933,2602.3,2601.8,3.84348]
[1730250681865,0.07439925,2602.1,2601.8,3.84348]
[1730250682068,4.227043,2602.3,2601.6,7.68741]
[1730250682318,0.07439925,2602.0,2601.6,7.6874]
[1730250682474,3.84326,2602.0,2601.4,3.84398]
[1730250682806,0.07439925,2601.9,2601.4,3.84397]
[1730250683307,0.07439925,2601.9,2601.6,3.8437]
[1730250683491,3.84299,2602.2,2601.7,3.84353]
[1730250683690,0.07440142,2601.8,2601.7,3.84353]
[1730250684024,0.07440142,2601.8,2601.7,3.84364]
[1730250684170,3.84299,2602.2,2601.6,3.8437]
[1730250684366,0.07440142,2602.1,2601.8,3.84341]
[1730250684587,3.84261,2602.4,2601.8,3.84335]
[1730250684785,0.07441862,2602.3,2601.9,3.84327]
[1730250685037,0.07441862,2602.3,2602.1,3.84292]
[1730250685329,1.36422832,2602.7,2601.9,0.8046]
[1730250685571,1.36422832,2602.7,2602.4,3.84248]
[1730250685572,0.07445085,2602.6,2602.4,3.84248]
[1730250686195,3.84189,2602.9,2602.4,3.84248]
[1730250686420,0.07447448,2602.8,2602.3,3.84263]
[1730250686827,0.07447448,2602.8,2602.4,3.84257]
[1730250687412,0.07447448,2602.8,2602.0,4.425563]
[1730250687611,0.07447448,2602.8,2602.7,3.84216]
[1730250687812,3.84079,2603.7,2603.2,3.84132]
[1730250688146,0.06913866,2603.6,2603.4,3.84104]
[1730250688373,0.06913866,2603.6,2603.3,3.84113]
[1730250688495,4.44160316,2603.9,2603.3,3.84113]
[1730250688819,0.06913866,2603.8,2603.3,3.84113]
[1730250689030,0.06913866,2603.8,2603.4,3.84098]
[1730250689196,0.90423384,2603.8,2603.5,3.84096]
[1730250689555,0.06913866,2603.8,2603.7,3.84068]
[1730250689701,0.60114316,2603.9,2603.7,3.84068]
[1730250689899,3.83951,2604.5,2603.9,3.84036]
[1730250690239,0.60090149,2604.7,2604.6,3.83936]
[1730250690437,0.60090149,2604.7,2604.5,3.83941]
[1730250690438,3.83857,2605.2,2604.5,3.83941]
[1730250690738,0.767683,2605.2,2604.7,0.7742]
[1730250690925,3.83871,2605.1,2604.4,3.83965]
[1730250691110,3.83839,2605.3,2604.6,3.83927]
[1730250691311,0.39604194,2605.9,2604.8,3.83898]
[1730250691530,3.83794,2605.6,2604.9,3.83891]
[1730250691837,3.83812,2605.5,2604.8,3.83906]
[1730250692012,3.83769,2605.8,2605.1,3.83858]
[1730250692231,3.83744,2605.9,2605.0,3.83872]